Workbook

Sheet Tax Formulas - IPTM.ORG.IN
A1: Code | B1: Tax Regime | C1: Status | D1: Taxable Income | E1: Income Tax | F1: Rebate | G1: Balance Tax | H1: Surcharge | I1: Total Tax | J1: Cess | K1: Net Tax
B2: New Regime | C2: G | D2: 710000 | E2: =ROUND(IF(B2="Old Regime",IF(C2="S",IF(D2<=300000,0,IF(D2<=500000,(D2-300000)*5%,IF(D2<=1000000,(D2-500000)*20%+10000,(D2-1000000)*30%+110000))),IF(D2<=250000,0,IF(D2<=500000,(D2-250000)*5%,IF(D2<=1000000,(D2-500000)*20%+12500,(D2-1000000)*30%+112500)))),IF(D2<=300000,0,IF(D2<=600000,(D2-300000)*5%,IF(D2<=900000,(D2-600000)*10%+15000,IF(D2<=1200000,(D2-900000)*15%+15000+30000,IF(D2<=1500000,(D2-1200000)*20%+15000+30000+45000,(D2-1500000)*30%+15000+30000+45000+60000)))))),0) -> 26000 | F2: =IF(B2="Old Regime",IF(D2>500000,0,IF(C2="G",MIN(E2,12500),MIN(E2,10000))),IF(AND(D2>700000,D2<=727778),E2-(D2-700000),IF(D2>700000,0,MIN(E2,25000)))) -> 16000 | G2: =E2-F2 -> 10000 | H2: =ROUND(IF(B2="Old Regime",IF(C2="S",IF(D2<=5000000,0,IF(D2<=5195530,(D2-5000000)*70%,IF(D2<=10000000,G2*10%,IF(D2<=10214510,(D2-10000000)*70%+281000,IF(D2<=20000000,G2*15%,IF(D2<=20929600,(D2-20000000)*70%+871500,IF(D2<=50000000,G2*25%,IF(D2<=53017320,(D2-50000000)*70%+3702500,G2*37%)))))))),IF(D2<=5000000,0,IF(D2<=5195890,(D2-5000000)*70%,IF(D2<=10000000,G2*10%,IF(D2<=10214700,(D2-10000000)*70%+281250,IF(D2<=20000000,G2*15%,IF(D2<=20930000,(D2-20000000)*70%+871875,IF(D2<=50000000,G2*25%,IF(D2<=53017830,(D2-50000000)*70%+3703125,G2*37%))))))))),IF(D2<=5000000,0,IF(D2<=5179105,(D2-5000000)*70%,IF(D2<=10000000,G2*10%,IF(D2<=10206107,(D2-10000000)*70%+270000,IF(D2<=20000000,G2*15%,IF(D2<=20912000,(D2-20000000)*70%+855000,G2*25%))))))),0) -> 0 | I2: =G2+H2 -> 10000 | J2: =ROUND(I2*4%,0) -> 400 | K2: =SUM(I2:J2) -> 10400
B3: Old Regime | C3: G | D3: 0 | E3: =ROUND(IF(B3="Old Regime",IF(C3="S",IF(D3<=300000,0,IF(D3<=500000,(D3-300000)*5%,IF(D3<=1000000,(D3-500000)*20%+10000,(D3-1000000)*30%+110000))),IF(D3<=250000,0,IF(D3<=500000,(D3-250000)*5%,IF(D3<=1000000,(D3-500000)*20%+12500,(D3-1000000)*30%+112500)))),IF(D3<=300000,0,IF(D3<=600000,(D3-300000)*5%,IF(D3<=900000,(D3-600000)*10%+15000,IF(D3<=1200000,(D3-900000)*15%+15000+30000,IF(D3<=1500000,(D3-1200000)*20%+15000+30000+45000,(D3-1500000)*30%+15000+30000+45000+60000)))))),0) -> 0 | F3: =IF(B3="Old Regime",IF(D3>500000,0,IF(C3="G",MIN(E3,12500),MIN(E3,10000))),IF(AND(D3>700000,D3<=727778),E3-(D3-700000),IF(D3>700000,0,MIN(E3,25000)))) -> 0 | G3: =E3-F3 -> 0 | H3: =ROUND(IF(B3="Old Regime",IF(C3="S",IF(D3<=5000000,0,IF(D3<=5195530,(D3-5000000)*70%,IF(D3<=10000000,G3*10%,IF(D3<=10214510,(D3-10000000)*70%+281000,IF(D3<=20000000,G3*15%,IF(D3<=20929600,(D3-20000000)*70%+871500,IF(D3<=50000000,G3*25%,IF(D3<=53017320,(D3-50000000)*70%+3702500,G3*37%)))))))),IF(D3<=5000000,0,IF(D3<=5195890,(D3-5000000)*70%,IF(D3<=10000000,G3*10%,IF(D3<=10214700,(D3-10000000)*70%+281250,IF(D3<=20000000,G3*15%,IF(D3<=20930000,(D3-20000000)*70%+871875,IF(D3<=50000000,G3*25%,IF(D3<=53017830,(D3-50000000)*70%+3703125,G3*37%))))))))),IF(D3<=5000000,0,IF(D3<=5179105,(D3-5000000)*70%,IF(D3<=10000000,G3*10%,IF(D3<=10206107,(D3-10000000)*70%+270000,IF(D3<=20000000,G3*15%,IF(D3<=20912000,(D3-20000000)*70%+855000,G3*25%))))))),0) -> 0 | I3: =G3+H3 -> 0 | J3: =ROUND(I3*4%,0) -> 0 | K3: =SUM(I3:J3) -> 0
B4: Old Regime | C4: S | D4: 0 | E4: =ROUND(IF(B4="Old Regime",IF(C4="S",IF(D4<=300000,0,IF(D4<=500000,(D4-300000)*5%,IF(D4<=1000000,(D4-500000)*20%+10000,(D4-1000000)*30%+110000))),IF(D4<=250000,0,IF(D4<=500000,(D4-250000)*5%,IF(D4<=1000000,(D4-500000)*20%+12500,(D4-1000000)*30%+112500)))),IF(D4<=300000,0,IF(D4<=600000,(D4-300000)*5%,IF(D4<=900000,(D4-600000)*10%+15000,IF(D4<=1200000,(D4-900000)*15%+15000+30000,IF(D4<=1500000,(D4-1200000)*20%+15000+30000+45000,(D4-1500000)*30%+15000+30000+45000+60000)))))),0) -> 0 | F4: 0 | G4: =E4-F4 -> 0 | H4: =ROUND(IF(B4="Old Regime",IF(C4="S",IF(D4<=5000000,0,IF(D4<=5195530,(D4-5000000)*70%,IF(D4<=10000000,G4*10%,IF(D4<=10214510,(D4-10000000)*70%+281000,IF(D4<=20000000,G4*15%,IF(D4<=20929600,(D4-20000000)*70%+871500,IF(D4<=50000000,G4*25%,IF(D4<=53017320,(D4-50000000)*70%+3702500,G4*37%)))))))),IF(D4<=5000000,0,IF(D4<=5195890,(D4-5000000)*70%,IF(D4<=10000000,G4*10%,IF(D4<=10214700,(D4-10000000)*70%+281250,IF(D4<=20000000,G4*15%,IF(D4<=20930000,(D4-20000000)*70%+871875,IF(D4<=50000000,G4*25%,IF(D4<=53017830,(D4-50000000)*70%+3703125,G4*37%))))))))),IF(D4<=5000000,0,IF(D4<=5179105,(D4-5000000)*70%,IF(D4<=10000000,G4*10%,IF(D4<=10206107,(D4-10000000)*70%+270000,IF(D4<=20000000,G4*15%,IF(D4<=20912000,(D4-20000000)*70%+855000,G4*25%))))))),0) -> 0 | I4: =G4+H4 -> 0 | J4: =ROUND(I4*4%,0) -> 0 | K4: =SUM(I4:J4) -> 0

Sheet Income Slabs
B2: >>>> Old Tax Slabs
C3: SLAB | D3: STATUS | E3: Income From | F3: Income Up to | G3: Tax Rate | H3: Tax Amount | J3: SLAB | K3: STATUS | L3: Income From | M3: Income Up to | N3: Surcharge | O3: Tax Amount
C4: OLD SLAB | D4: General | E4: 0 | F4: 250000 | G4: 0 | H4: 0 | J4: Old Slab | K4: General | L4: 0 | M4: 5000000 | N4: 0 | O4: 0
C5: OLD SLAB | D5: General | E5: =F4+1 -> 250001 | F5: 500000 | G5: 5 | H5: =ROUND((F5-E5)*G5%,0) -> 12500 | J5: Old Slab | K5: General | L5: =+M4+1 -> 5000001 | M5: 5195890 | N5: Marginal | O5: 0
C6: OLD SLAB | D6: General | E6: =F5+1 -> 500001 | F6: 1000000 | G6: 20 | H6: =ROUND((F6-E6)*G6%,0) -> 100000 | J6: Old Slab | K6: General | L6: 5195891 | M6: 10000000 | N6: 10 | O6: 0
C7: OLD SLAB | D7: General | E7: =F6+1 -> 1000001 | F7: > | G7: 30 | H7: =H6+H5 -> 112500 | J7: Old Slab | K7: General | L7: 10000001 | M7: 10214700 | N7: Marginal | O7: 281250
J8: Old Slab | K8: General | L8: 10214701 | M8: 20000000 | N8: 15 | O8: 0
C9: OLD SLAB | D9: Senior Citizen | E9: 0 | F9: 300000 | G9: 0 | H9: 0 | J9: Old Slab | K9: General | L9: 20000001 | M9: 20930000 | N9: Marginal | O9: 871875
C10: OLD SLAB | D10: Senior Citizen | E10: =F9+1 -> 300001 | F10: 500000 | G10: 5 | H10: =ROUND((F10-E10)*G10%,0) -> 10000 | J10: Old Slab | K10: General | L10: 20930001 | M10: 50000000 | N10: 25 | O10: 0
C11: OLD SLAB | D11: Senior Citizen | E11: =F10+1 -> 500001 | F11: 1000000 | G11: 20 | H11: =ROUND((F11-E11)*G11%,0) -> 100000 | J11: Old Slab | K11: General | L11: 50000001 | M11: 53017830 | N11: Marginal | O11: 3703125
C12: OLD SLAB | D12: Senior Citizen | E12: =F11+1 -> 1000001 | F12: > | G12: 30 | H12: =H11+H10 -> 110000 | J12: Old Slab | K12: General | L12: 53017831 | M12: > | N12: 37 | O12: 0
C15: Additional Tax Slab | J15: SLAB | K15: STATUS | L15: Income From | M15: Income Up to | N15: Surcharge | O15: Tax Amount
C16: SLAB | D16: Income Up to | E16: Tax | F16: Surcharge | G16: Cess | H16: Add Tax | J16: Old Slab | K16: Senior Citizen | L16: 0 | M16: 5000000 | N16: 0 | O16: 0
C17: Old Slab | D17: 250000 | E17: 0 | F17: =E17*0% -> 0 | G17: =(E17+F17)*4% -> 0 | H17: =G17+F17+E17 -> 0 | J17: Old Slab | K17: Senior Citizen | L17: =+M16+1 -> 5000001 | M17: 5195530 | N17: Marginal | O17: 0
C18: Old Slab | D18: 500000 | E18: 5 | F18: =E18*0% -> 0 | G18: 0.2 | H18: 5.2 | J18: Old Slab | K18: Senior Citizen | L18: 5195531 | M18: 10000000 | N18: 10 | O18: 0
C19: Old Slab | D19: 1000000 | E19: 20 | F19: =E19*0% -> 0 | G19: 0.8 | H19: 20.8 | J19: Old Slab | K19: Senior Citizen | L19: 10000001 | M19: 10214510 | N19: Marginal | O19: 281000
C20: Old Slab | D20: 5000000 | E20: 30 | F20: =E20*0% -> 0 | G20: 1.2 | H20: 31.2 | J20: Old Slab | K20: Senior Citizen | L20: 10214511 | M20: 20000000 | N20: 15 | O20: 0
C21: Old Slab | D21: 10000000 | E21: 30 | F21: =E21*10% -> 3 | G21: 1.32 | H21: 34.32 | J21: Old Slab | K21: Senior Citizen | L21: 20000001 | M21: 20929600 | N21: Marginal | O21: 871500
C22: Old Slab | D22: 20000000 | E22: 30 | F22: =E22*15% -> 4.5 | G22: 1.38 | H22: 35.88 | J22: Old Slab | K22: Senior Citizen | L22: 20929601 | M22: 50000000 | N22: 25 | O22: 0
C23: Old Slab | D23: 50000000 | E23: 30 | F23: =E23*25% -> 7.5 | G23: 1.5 | H23: 39 | J23: Old Slab | K23: Senior Citizen | L23: 50000001 | M23: 53017320 | N23: Marginal | O23: 3702500
C24: Old Slab | D24: > 50000000 | E24: 30 | F24: =E24*37% -> 11.1 | G24: 1.644 | H24: 42.744 | J24: Old Slab | K24: Senior Citizen | L24: 53017321 | M24: > | N24: 37 | O24: 0
B29: >>>> New Tax Slabs
C30: SLAB | D30: STATUS | E30: Income From | F30: Income Up to | G30: Tax Rate | H30: Tax Amount | J30: SLAB | K30: STATUS | L30: Income From | M30: Income Up to | N30: Surcharge | O30: Tax Amount
C31: New Slab | D31: General | E31: 0 | F31: 300000 | G31: 0 | H31: 0 | J31: New Slab | K31: All | L31: 0 | M31: 5000000 | N31: 0 | O31: 0
C32: New Slab | D32: General | E32: =F31+1 -> 300001 | F32: =F31+300000 -> 600000 | G32: 5 | H32: =ROUND((F32-E32)*G32%,0) -> 15000 | J32: New Slab | K32: All | L32: =+M31+1 -> 5000001 | M32: 5179105 | N32: Marginal | O32: 0
C33: New Slab | D33: General | E33: 600001 | F33: =F32+300000 -> 900000 | G33: 10 | H33: =ROUND((F33-E33)*G33%,0) -> 30000 | J33: New Slab | K33: All | L33: 5179106 | M33: 10000000 | N33: 10 | O33: 0
C34: New Slab | D34: General | E34: 900001 | F34: =F33+300000 -> 1200000 | G34: 15 | H34: =ROUND((F34-E34)*G34%,0) -> 45000 | J34: New Slab | K34: All | L34: 10000001 | M34: 10206107 | N34: Marginal | O34: 270000
C35: New Slab | D35: General | E35: 1200001 | F35: =F34+300000 -> 1500000 | G35: 20 | H35: =ROUND((F35-E35)*G35%,0) -> 60000 | J35: New Slab | K35: All | L35: 10206108 | M35: 20000000 | N35: 15 | O35: 0
C36: New Slab | D36: General | E36: 1500001 | F36: > | G36: 30 | H36: =SUM(H32:H35) -> 150000 | J36: New Slab | K36: All | L36: 20000001 | M36: 20912000 | N36: Marginal | O36: 855000
J37: New Slab | K37: All | L37: 20912001 | M37: > | N37: 25 | O37: 0
C41: Additional Tax Slab
C42: SLAB | D42: Income Up to | E42: Tax | F42: Surcharge | G42: Cess | H42: Add Tax
C43: New Slab | D43: 300000 | E43: 0 | F43: =E43*0% -> 0 | G43: =(E43+F43)*4% -> 0 | H43: =G43+F43+E43 -> 0
C44: New Slab | D44: =D43+300000 -> 600000 | E44: 5 | F44: 0 | G44: 0.2 | H44: 5.2
C45: New Slab | D45: =D44+300000 -> 900000 | E45: 10 | F45: 0 | G45: 0.4 | H45: 10.4
C46: New Slab | D46: =D45+300000 -> 1200000 | E46: 15 | F46: 0 | G46: 0.6 | H46: 15.6
C47: New Slab | D47: =D46+300000 -> 1500000 | E47: 20 | F47: 0 | G47: 0.8 | H47: 20.8
C48: New Slab | D48: 5000000 | E48: 30 | F48: 0 | G48: 1.2 | H48: 31.2
C49: New Slab | D49: 10000000 | E49: 30 | F49: =E49*10% -> 3 | G49: =(E49+F49)*4% -> 1.32 | H49: 34.32
C50: New Slab | D50: 20000000 | E50: 30 | F50: =E50*15% -> 4.5 | G50: =(E50+F50)*4% -> 1.38 | H50: =G50+F50+E50 -> 35.88
C51: New Slab | D51: > 20000000 | E51: 30 | F51: =E51*25% -> 7.5 | G51: =(E51+F51)*4% -> 1.5 | H51: =G51+F51+E51 -> 39
